bitfinex-derivatives/quotes_ETHF0:USTF0_20250612
["timestamp","ask_amount","ask_price","bid_price","bid_amount"]
[1749715931598,8.93602,2745.9,2745.8,17.57200026]
[1749715931801,3.93602,2745.9,2745.8,17.57200026]
[1749715932403,3.93602,2745.9,2745.8,2.6e-07]
[1749715932599,3.93602,2745.9,2745.8,22.41000026]
[1749715932796,3.2078,2745.9,2745.8,22.41000026]
[1749715932997,3.93602,2745.9,2745.8,22.41000026]
[1749715934501,3.93602,2745.9,2745.8,22.40900026]
[1749715934898,3.93602,2745.9,2745.8,22.40800026]
[1749715935904,8.93602,2745.9,2745.8,2.6e-07]
[1749715936201,10.87702,2745.9,2745.8,2.6e-07]
[1749715937098,12.2795255,2745.9,2745.8,2.6e-07]
[1749715937703,10.87702,2745.9,2745.8,2.6e-07]
[1749715937893,5.87702,2745.9,2745.8,2.6e-07]
[1749715939307,5.9390372,2745.9,2745.8,2.6e-07]
[1749715940701,3.9980372,2745.9,2745.8,2.6e-07]
[1749715941599,3.9980372,2745.9,2745.8,4.83800026]
[1749715943402,3.2698172,2745.9,2745.8,9.60274026]
[1749715943608,0.0620172,2745.9,2745.8,11.65134026]
[1749715946806,3.2078,2746.5,2745.8,10.92310026]
[1749715947007,3.93588,2746.5,2746.3,0.7281]
[1749715947208,3.93588,2746.5,2746.4,24.4878]
[1749715947411,3.2078,2746.5,2746.4,27.33898]
[1749715947812,3.93586,2746.5,2746.4,26.6109]
[1749715948005,3.2078,2746.5,2746.4,27.33898]
[1749715948910,3.2078,2746.9,2746.6,0.72801]
[1749715949115,3.2078,2746.9,2746.8,0.72798]
[1749715949416,3.2078,2746.9,2746.8,23.12598]
[1749715949714,3.2078,2746.9,2746.8,22.398]
[1749715949916,3.2078,2746.9,2746.6,1.921]
[1749715950116,3.2078,2746.9,2746.8,22.398]
[1749715950309,3.2078,2747.4,2747.0,0.7279]
[1749715950507,0.7279,2747.1,2746.8,22.398]
[1749715950716,0.72789,2747.2,2747.0,0.72792]
[1749715951115,0.72789,2747.2,2747.1,1.9688]
[1749715951523,0.72786,2747.3,2747.1,2.69668]
[1749715951812,0.72785,2747.3,2747.2,22.396]
[1749715952614,0.72787,2747.2,2747.1,1.9688]
[1749715952811,0.72787,2747.2,2747.1,24.3618]
[1749715953011,0.728,2746.8,2746.7,22.393]
[1749715953227,3.2078,2746.9,2746.7,22.393]
[1749715953422,3.2078,2747.3,2746.7,22.393]
[1749715953711,3.93567,2747.3,2746.8,2.0212]
[1749715953919,0.72787,2747.2,2747.1,0.72788]
[1749715954124,0.72787,2747.2,2747.1,4.836]
[1749715954516,0.72787,2747.2,2747.1,7.5817]
[1749715954816,0.7898872,2747.2,2747.1,7.5817]
[1749715955215,0.0620172,2747.2,2747.1,6.8538]
[1749715955419,0.7898872,2747.2,2747.1,6.8538]
[1749715955618,0.7898872,2747.2,2747.1,7.5817]
[1749715956316,0.0620172,2747.2,2747.1,7.5817]
[1749715956619,0.7898872,2747.2,2747.1,6.8538]
[1749715957019,0.7898872,2747.2,2747.1,24.4078]
[1749715957219,0.7898872,2747.2,2747.1,2.0178]
[1749715957420,0.7898872,2747.2,2747.1,24.4078]
[1749715958817,0.7898872,2747.2,2747.1,22.38]
[1749715959322,0.7898872,2747.2,2747.1,23.1079]
[1749715959516,0.0620172,2747.2,2747.1,23.1079]
[1749715959718,0.0620172,2747.2,2747.1,26.3157]
[1749715960019,0.7277,2747.9,2747.1,26.3157]
[1749715960321,7.4296,2748.1,2747.1,26.3157]
[1749715960322,1.81916,2748.0,2747.5,0.72779]
[1749715960516,0.72772,2747.8,2747.7,0.72773]
[1749715960724,0.72772,2747.8,2747.7,1.983]
[1749715961117,3.2078,2748.1,2747.7,2.71074]
[1749715961424,0.72771,2747.9,2747.7,2.71073]
[1749715961721,0.7277,2747.9,2747.8,0.72771]
[1749715962625,1.81902,2748.3,2747.8,2.77631]
[1749715962818,0.72769,2747.9,2747.8,2.0486]
[1749715964616,0.72771,2747.8,2747.7,1.983]
[1749715964820,0.72771,2747.8,2747.7,22.373]
[1749715966827,7.12531,2748.1,2747.7,22.371]
[1749715967024,0.72771,2747.8,2747.7,22.371]
[1749715967928,0.72779,2747.5,2747.4,3.2078]
[1749715968128,0.72778,2747.6,2747.5,0.72779]
[1749715968726,0.72779,2747.6,2747.5,0.72779]
[1749715968926,1.81923,2747.9,2747.4,27.6686]
[1749715969130,0.72778,2747.6,2747.5,0.72778]
[1749715969328,0.72778,2747.6,2747.5,2.81858]
[1749715969533,0.72778,2747.6,2747.5,2.0908]
[1749715970029,0.72779,2747.5,2747.4,25.5778]
[1749715970231,0.72779,2747.5,2747.4,28.39642]
[1749715970632,0.72779,2747.5,2747.4,28.39641]
[1749715970925,0.0620172,2747.8,2747.5,0.72778]
[1749715971132,0.0620172,2747.8,2747.6,22.368]
[1749715971330,0.72774,2747.7,2747.6,22.368]
[1749715972931,0.0620172,2747.8,2747.6,0.72776]
[1749715973137,0.72776,2747.7,2747.6,22.367]
[1749715974836,0.0620172,2747.8,2747.4,3.2078]
[1749715975138,0.72779,2747.5,2747.4,3.2078]
[1749715975329,0.72779,2747.5,2747.4,25.5728]
[1749715976337,0.72779,2747.5,2747.4,26.30062]
[1749715977238,0.72778,2747.6,2747.5,0.72778]
[1749715977438,0.7897472,2747.8,2747.7,0.72774]
[1749715977742,0.72777,2747.7,2747.6,0.72775]
[1749715978645,0.0620172,2747.8,2747.4,25.5728]
[1749715978844,0.72775,2747.7,2747.6,0.72775]
[1749715979038,0.72777,2747.6,2747.5,2.70519]
[1749715979240,0.72776,2747.7,2747.6,0.72776]
[1749715979545,0.72777,2747.6,2747.5,1.9774]
[1749715979745,0.72779,2747.5,2747.4,3.2078]
[1749715979940,0.72779,2747.6,2747.5,0.72779]
[1749715980141,0.0620172,2747.8,2747.4,25.5698]
[1749715980342,0.72775,2747.7,2747.6,0.72774]
[1749715980641,0.72776,2747.7,2747.6,0.72776]
[1749715982338,0.0620172,2747.8,2747.7,0.72774]
[1749715983042,0.72775,2747.7,2747.6,0.72775]
[1749715983648,0.0620172,2747.8,2747.7,0.72774]
[1749715986943,0.0620172,2747.8,2747.7,23.08574]
[1749715988148,0.0620172,2747.8,2747.4,3.2078]
[1749715988748,0.72776,2747.7,2747.6,0.72775]
[1749715989142,0.0620172,2747.8,2747.7,0.72774]
[1749715989343,0.7897272,2747.8,2747.7,0.72774]
[1749715989543,0.0620172,2747.8,2747.7,0.72774]
[1749715989945,0.0620172,2747.8,2747.6,0.72775]
[1749715990147,0.72778,2747.6,2747.5,0.72778]
[1749715990451,2.02107,2747.7,2747.6,0.72777]
[1749715990957,0.72777,2747.6,2747.5,0.72778]
[1749715991250,2.02106,2747.7,2747.6,0.72777]
[1749715991452,1.2933,2747.7,2747.5,22.346]
[1749715991747,2.02106,2747.7,2747.6,23.07377]
[1749715993546,0.0620172,2747.8,2747.7,0.72774]
[1749715993947,0.0620172,2747.8,2747.7,3.93554]
[1749715994945,0.0620172,2747.8,2747.7,26.27954]
[1749715996647,0.0620172,2747.8,2747.7,3.93554]
[1749715996848,0.0620172,2747.8,2747.7,26.27854]
[1749715998753,0.0620172,2747.8,2747.5,17.525]
[1749715999055,0.0620172,2747.8,2747.7,0.72774]
[1749716002256,0.7897572,2747.8,2747.6,0.72776]
[1749716002458,0.7897272,2747.8,2747.7,22.339]
[1749716003061,0.0620172,2747.8,2747.7,23.06674]
[1749716003358,0.0620172,2747.8,2747.7,26.27454]
[1749716003755,0.7897372,2747.8,2747.7,26.27454]
[1749716003948,0.7897372,2747.8,2747.7,26.27354]
[1749716003949,0.0620172,2747.8,2747.7,26.27354]
[1749716004350,3.2078,2748.9,2747.7,25.5458]
[1749716004550,0.14435,2749.2,2748.9,0.7274]
[1749716004755,0.72738,2749.1,2749.0,0.8161]
[1749716004955,0.72742,2748.9,2748.8,0.0054601]
[1749716005156,0.14435,2749.2,2749.1,0.72737]
[1749716005359,0.14435,2749.2,2748.8,0.0054601]
[1749716005559,0.72738,2749.1,2748.9,23.06341]
[1749716005755,0.7274,2749.0,2748.9,22.336]
[1749716005960,0.14435,2749.2,2748.9,22.334]
[1749716005961,0.72739,2749.1,2748.9,22.334]
[1749716006159,0.14435,2749.2,2748.8,0.7329001]
[1749716006359,0.7274,2749.0,2748.9,22.334]
[1749716006964,0.72742,2748.9,2748.8,0.0054601]
[1749716007357,0.7274,2749.0,2748.8,22.3394601]
[1749716007552,1.1886,2749.1,2748.8,23.1675601]
[1749716007959,1.91599,2749.1,2748.8,23.8950101]
[1749716008159,1.91599,2749.1,2748.8,23.1675601]
[1749716008160,0.72742,2749.0,2748.8,23.1675601]
[1749716008564,0.72742,2748.9,2748.8,23.1675601]
[1749716008754,0.72742,2748.9,2748.8,0.8335601]
[1749716009263,0.72742,2748.9,2748.8,23.1645601]
[1749716011465,0.72741,2749.0,2748.8,23.8920001]
[1749716011656,0.72741,2749.0,2748.8,23.8919901]
[1749716011861,0.72742,2748.9,2748.8,23.8919901]
[1749716012165,0.72742,2748.9,2748.8,23.1645601]
[1749716012561,0.72742,2748.9,2748.8,23.1615601]
[1749716013261,0.72741,2749.0,2748.8,23.8889801]
[1749716013461,0.72741,2749.0,2748.9,0.72742]
[1749716013657,3.35215,2749.2,2748.8,23.1615601]
[1749716013658,0.14435,2749.2,2748.8,23.1615601]
[1749716013864,0.14435,2749.2,2749.1,0.72737]
[1749716014266,0.14435,2749.2,2749.1,2.75797]
[1749716014462,0.72722,2749.7,2749.1,2.0306]
[1749716014661,3.2078,2749.9,2749.2,22.326]
[1749716014867,0.72722,2749.7,2749.5,0.72725]
[1749716015066,0.72722,2749.7,2749.6,23.8902]
[1749716015264,3.2078,2749.9,2749.6,23.8902]
[1749716015458,0.7272,2749.8,2749.6,23.8902]
[1749716015663,0.72721,2749.7,2749.6,27.098]
[1749716015859,3.07556,2750.2,2749.6,24.61744]
[1749716015860,0.72719,2749.8,2749.6,24.61744]
[1749716016068,1.2578,2750.2,2749.7,3.93501]
[1749716016267,1.2578,2750.2,2749.7,3.2078]
[1749716016468,0.72719,2749.8,2749.7,4.4566]
[1749716016670,1.2578,2750.2,2749.7,5.1838]
[1749716016866,0.72719,2749.8,2749.7,4.4566]
[1749716018369,0.72719,2749.8,2749.7,5.18381]
[1749716018567,0.72719,2749.8,2749.7,4.4566]
[1749716019566,0.72719,2749.8,2749.7,3.2078]
[1749716019873,0.72719,2749.8,2749.7,25.5188]
[1749716021773,1.2578,2750.2,2749.7,26.246]
[1749716021969,1.2578,2750.2,2749.8,0.72719]
[1749716022174,0.72715,2750.0,2749.8,0.72718]
[1749716022672,1.2578,2750.2,2749.8,0.72718]
[1749716022976,3.2078,2750.3,2749.7,25.5188]
[1749716023170,0.72719,2749.8,2749.7,26.8016]
[1749716023466,0.72718,2749.9,2749.7,26.241]
[1749716023663,0.72719,2749.8,2749.7,25.5138]
[1749716024068,1.2852,2750.2,2749.7,3.2078]
[1749716024266,0.72716,2749.9,2749.8,22.304]
[1749716024468,3.2078,2750.6,2749.8,22.304]
[1749716024670,3.2078,2750.6,2749.8,23.5868]
[1749716024869,1.81751,2750.5,2749.9,0.72716]
[1749716025175,1.81758,2750.4,2750.0,22.304]
[1749716025368,1.2852,2750.4,2749.7,3.2078]
[1749716025673,0.72719,2749.8,2749.7,3.2078]
[1749716026064,0.72719,2749.8,2749.7,22.303]
[1749716027068,3.2078,2750.0,2749.5,0.72726]
[1749716027268,0.72719,2749.8,2749.7,22.302]
[1749716027974,0.72727,2749.5,2749.4,22.72828]
[1749716028177,1.1966,2749.9,2749.4,44.302]
[1749716028474,1.1966,2749.9,2749.5,0.72725]
[1749716028674,0.72723,2749.7,2749.6,0.72723]
[1749716029068,0.72724,2749.6,2749.5,3.93505]
[1749716029671,0.72723,2749.7,2749.5,3.93505]
[1749716029977,0.72723,2749.7,2749.6,0.72724]
[1749716030365,0.72724,2749.6,2749.5,3.2078]
[1749716030568,0.72723,2749.7,2749.5,22.3]
[1749716030769,0.72723,2749.7,2749.6,0.72724]
[1749716030971,0.0620172,2749.8,2749.7,0.72721]
[1749716032381,0.7892072,2749.8,2749.7,0.72721]
[1749716032879,0.72723,2749.7,2749.6,0.72723]
[1749716033079,0.72723,2749.7,2749.6,23.02523]
[1749716033281,0.72721,2749.7,2749.6,4.804]
[1749716033477,0.72721,2749.7,2749.6,22.297]
[1749716033882,0.7892072,2749.8,2749.6,22.297]
[1749716034185,0.72721,2749.7,2749.6,23.02424]
[1749716034485,0.7892072,2749.8,2749.7,0.72721]
[1749716034686,0.0620172,2749.8,2749.7,0.72721]
[1749716034979,0.7892072,2749.8,2749.7,0.72721]
[1749716036177,0.0620172,2749.8,2749.7,0.72721]
[1749716036777,0.0620172,2749.8,2749.7,1.95411]
[1749716037988,0.7892072,2749.8,2749.7,1.95411]
[1749716038284,0.7892072,2749.8,2749.7,0.72721]
[1749716038485,0.72721,2749.7,2749.6,4.804]
[1749716038678,0.72721,2749.7,2749.6,22.294]
[1749716038875,0.72727,2749.5,2749.4,22.001]
[1749716039073,0.72727,2749.5,2749.4,44.293]
[1749716039278,0.72727,2749.5,2749.4,22.001]
[1749716039478,0.72727,2749.5,2749.4,44.293]
[1749716040581,0.72727,2749.5,2749.4,44.292]
[1749716040882,0.72729,2749.4,2749.3,17.488]
[1749716041084,5.15849,2749.4,2749.3,17.488]
[1749716041285,0.72737,2749.1,2749.0,4.803]
[1749716041479,0.72737,2749.1,2749.0,22.291]
[1749716042177,0.72742,2748.9,2748.8,4.7111101]
[1749716042379,6.24948,2749.4,2748.8,26.2756601]
[1749716042578,0.72742,2748.9,2748.8,4.7111001]
[1749716042882,0.72742,2748.9,2748.8,4.8094601]
[1749716043179,0.72742,2748.9,2748.8,22.2964601]
[1749716043587,0.72742,2748.9,2748.8,4.8094601]
[1749716043783,0.72742,2748.9,2748.8,22.2964601]
[1749716043989,3.2078,2749.1,2748.8,22.2964601]
[1749716044289,0.0620172,2749.8,2749.0,1.8185]
[1749716044483,0.72734,2749.3,2749.1,0.768]
[1749716044681,0.72732,2749.3,2749.2,22.29]
[1749716044889,0.72732,2749.3,2749.2,17.486]
[1749716045076,0.72734,2749.2,2749.1,22.291]
[1749716045288,0.72742,2748.9,2748.8,4.8094601]
[1749716045481,0.72742,2748.9,2748.8,22.2964601]
[1749716046084,0.7894372,2748.9,2748.8,22.2964601]
[1749716046282,0.7894372,2748.9,2748.8,0.0054601]
[1749716048783,0.7894372,2748.9,2748.8,17.4924601]
[1749716050186,0.7894372,2748.9,2748.8,0.0054601]
[1749716050386,1.0916372,2748.9,2748.8,0.0054601]
[1749716050885,0.7894372,2748.9,2748.8,0.0054601]
[1749716055794,0.0620172,2748.9,2748.8,0.7329101]
[1749716055990,3.2078,2749.5,2748.9,0.72742]
[1749716056186,3.2078,2749.5,2749.0,5.1518]
[1749716056389,0.72737,2749.1,2749.0,0.7074]
[1749716056582,0.72737,2749.1,2749.0,22.9844]
[1749716057288,0.72737,2749.1,2749.0,0.7074]
[1749716057597,0.72737,2749.1,2749.0,22.9834]
[1749716058497,0.72737,2749.1,2749.0,0.7074]
[1749716058796,0.72737,2749.1,2749.0,22.276]
[1749716059503,0.72737,2749.1,2749.0,23.0034]
[1749716059888,0.72737,2749.1,2749.0,22.276]
[1749716060395,0.7893872,2749.1,2749.0,22.276]
[1749716061287,0.0620172,2749.1,2749.0,23.0034]
[1749716062389,0.7893872,2749.1,2749.0,23.0034]
[1749716062594,0.0620172,2749.1,2749.0,23.0034]
[1749716063298,0.0620172,2749.1,2749.0,26.2112]
[1749716063992,0.7893872,2749.1,2749.0,25.4838]
[1749716064497,0.72742,2748.9,2748.8,1.9106001]
[1749716064696,0.72741,2749.0,2748.9,0.72741]
[1749716065094,0.7894072,2749.1,2749.0,0.7274]
[1749716065297,0.0620172,2749.1,2749.0,0.7274]
[1749716065694,0.7273,2749.4,2749.3,0.72732]
[1749716065991,3.2078,2749.5,2749.0,1.2694]
[1749716065992,0.72737,2749.1,2749.0,1.2694]
[1749716066197,0.72742,2748.9,2748.8,1.2748601]
[1749716066396,0.72741,2749.0,2748.9,0.7274]
[1749716066596,0.0620172,2749.1,2749.0,0.7274]
[1749716070403,0.7893872,2749.1,2749.0,0.7274]
[1749716070609,0.72742,2748.9,2748.8,1.2748601]
[1749716070905,0.0620172,2749.1,2748.8,23.5398601]
[1749716070906,0.72741,2749.0,2748.8,23.5398601]
[1749716071109,0.7894072,2749.1,2749.0,0.7274]
[1749716071308,0.72741,2749.0,2748.9,0.7274]
[1749716071710,0.7894072,2749.1,2749.0,0.7274]
[1749716072506,0.72741,2749.0,2748.9,0.72741]
[1749716073014,0.0620172,2749.1,2749.0,0.7274]
[1749716073514,0.0620172,2749.1,2749.0,1.9769]
[1749716074513,0.72733,2749.3,2749.2,0.72734]
[1749716074713,0.72733,2749.3,2749.2,22.98934]
[1749716076708,0.72733,2749.3,2749.2,26.19714]
[1749716076904,0.72731,2749.4,2749.3,0.72731]
[1749716077110,0.72729,2749.4,2749.3,1.48151]
[1749716077510,5.02582,2749.8,2749.5,0.72726]
[1749716077511,0.72726,2749.6,2749.5,0.72726]
[1749716078114,0.72728,2749.5,2749.4,0.72728]
[1749716079412,0.72728,2749.5,2749.4,1.47718]
[1749716079916,0.72727,2749.5,2749.4,1.47718]
[1749716080214,0.72725,2749.6,2749.5,0.72725]
[1749716080719,3.2078,2749.8,2749.4,0.7499]
[1749716080921,0.72727,2749.5,2749.4,1.47718]
[1749716081225,0.72726,2749.6,2749.5,0.72725]
[1749716081818,0.72727,2749.5,2749.4,1.47719]
[1749716084821,0.72725,2749.6,2749.5,0.72724]
[1749716085928,0.72727,2749.5,2749.4,1.47717]
[1749716086517,0.72727,2749.5,2749.4,0.7499]
[1749716087024,0.72743,2748.9,2748.8,7.9922601]
[1749716087218,0.72743,2748.9,2748.8,25.4482601]
[1749716087713,0.0620172,2749.0,2748.9,0.72741]
[1749716088216,0.72743,2748.9,2748.8,3.2132601]
[1749716088417,2.01213,2748.9,2748.8,25.4472601]
[1749716088721,2.01213,2748.9,2748.8,7.9922601]
[1749716088916,2.01213,2748.9,2748.8,25.4462601]
[1749716089117,2.01213,2748.9,2748.8,3.2132601]
[1749716089424,2.01213,2748.9,2748.8,20.6672601]
[1749716089627,2.01213,2748.9,2748.8,21.3947101]
[1749716089821,0.0620172,2749.0,2748.8,20.6672601]
[1749716090121,0.7894272,2749.0,2748.9,0.72743]
[1749716090620,0.0620172,2749.0,2748.9,0.72743]
[1749716091218,0.7894172,2749.0,2748.9,0.72743]
[1749716091421,0.72743,2748.9,2748.8,21.3947001]
[1749716091724,0.72743,2748.9,2748.8,20.6672601]
[1749716092022,1.95373,2748.9,2748.8,25.4452601]
[1749716093731,1.2263,2748.9,2748.8,26.1727101]
[1749716094022,1.95373,2748.9,2748.8,26.1727101]
[1749716095627,0.72743,2748.9,2748.8,26.1727101]
[1749716096119,0.7894372,2749.0,2748.9,0.72743]
[1749716096327,0.0620172,2749.0,2748.9,0.72743]
[1749716096819,0.7894172,2749.0,2748.9,0.72743]
[1749716097023,0.72743,2748.9,2748.8,26.1726901]
[1749716097526,0.72743,2748.9,2748.8,25.4452601]
[1749716097720,0.72743,2748.9,2748.8,26.1727101]
[1749716099021,0.72743,2748.9,2748.8,25.4452601]
[1749716099229,0.0620172,2749.0,2748.9,0.72743]
[1749716099730,0.7894172,2749.0,2748.9,0.72743]
[1749716100224,0.72743,2748.9,2748.8,26.1727001]
[1749716100425,0.72743,2748.9,2748.8,25.4452601]
[1749716100620,0.72743,2748.9,2748.8,26.1727101]
[1749716101429,0.72743,2748.9,2748.8,4.7844601]
[1749716101622,0.72743,2748.9,2748.8,22.2304601]
[1749716101825,3.0082,2748.9,2748.2,3.2078]
[1749716102119,0.72764,2748.1,2748.0,6.2121]
[1749716102330,3.2078,2748.2,2747.5,3.2078]
[1749716102532,0.72777,2747.6,2747.5,3.2078]
[1749716102830,0.72777,2747.6,2747.5,20.6528]
[1749716103028,0.72777,2747.6,2747.5,3.2078]
[1749716103227,0.72782,2747.4,2747.3,4.7854601]
[1749716103625,0.00542625,2747.8,2747.7,0.72774]
[1749716103929,0.73314625,2747.8,2747.7,22.225]
[1749716104333,0.00542625,2747.8,2747.3,0.0054601]
[1749716104630,0.72793,2747.0,2746.9,3.2078]
[1749716105026,0.72804,2746.6,2746.5,8.7171]
[1749716105221,0.72804,2746.6,2746.5,26.1631]
[1749716105722,0.72804,2746.6,2746.5,3.9371]
[1749716105922,0.72809,2746.4,2746.3,0.0054601]
[1749716106119,3.93589,2746.4,2746.3,0.0054601]
[1749716106531,0.72809,2746.4,2746.3,0.0054601]
[1749716107831,3.93589,2746.4,2746.3,0.0054601]
[1749716108621,0.7282,2746.0,2745.9,4.782]
[1749716108826,0.7282,2746.0,2745.9,17.449]
[1749716109341,3.2078,2746.1,2745.3,5.51037]
[1749716109625,0.72832,2745.6,2745.4,17.4534601]
[1749716109819,0.0054601,2746.0,2745.4,17.4534601]
[1749716110025,0.0054601,2746.0,2745.9,3.93602]
[1749716110633,0.0054601,2746.0,2745.9,5.85432]
[1749716110828,0.0054601,2746.0,2745.9,23.30232]
[1749716111326,0.2886,2746.6,2746.5,0.72806]
[1749716111627,0.2886,2746.6,2746.5,18.17906]
[1749716112234,0.2886,2746.6,2746.5,19.40906]
[1749716114423,0.72784,2747.4,2747.2,0.72787]
[1749716114636,3.2698172,2747.6,2747.4,0.72781]
[1749716114637,0.7898072,2747.6,2747.4,0.72781]
[1749716114830,0.7897972,2747.6,2747.4,18.17782]
[1749716115029,0.0620172,2747.6,2747.5,0.7278]
[1749716115635,0.0620172,2747.6,2747.5,2.6581]
[1749716116031,3.9975872,2747.6,2747.5,0.7269]
[1749716116229,0.72782,2747.4,2747.3,0.0054601]
[1749716117131,0.0620172,2747.6,2747.3,7.9812601]
[1749716117438,0.7898072,2747.6,2747.4,0.72781]
[1749716117638,0.72781,2747.5,2747.3,8.7091001]
[1749716117838,0.72782,2747.4,2747.3,0.0054601]
[1749716118132,3.9976172,2747.6,2747.4,0.72781]
[1749716118337,0.0620172,2747.6,2747.4,0.72781]
[1749716118526,0.72782,2747.4,2747.3,17.4524601]
[1749716119138,0.72782,2747.4,2747.3,18.1803101]
[1749716119338,0.72782,2747.4,2747.3,17.4524601]
[1749716120027,0.0620172,2747.6,2747.3,17.4524601]
[1749716120234,0.72779,2747.6,2747.4,0.72781]
[1749716120427,0.72781,2747.5,2747.3,19.4500001]
[1749716120631,0.72775,2747.7,2747.3,18.7221601]
[1749716120832,0.00542625,2747.8,2747.7,0.72774]
[1749716121036,0.00542625,2747.8,2747.7,5.49574]
[1749716122138,3.2078,2748.2,2748.1,0.72764]
[1749716122338,3.2078,2748.2,2748.1,22.93964]
[1749716122531,0.72756,2748.5,2748.3,0.72757]
[1749716122734,0.72758,2748.4,2748.2,1.9973]
[1749716122929,0.72755,2748.5,2748.4,0.72756]
[1749716123134,3.93531,2748.6,2748.3,0.72758]
[1749716123634,3.2078,2748.6,2748.5,0.72753]
[1749716123830,3.2078,2748.6,2748.5,5.49553]
[1749716124434,3.2078,2749.0,2748.5,4.768]
[1749716124636,0.72747,2748.8,2748.6,17.441]
[1749716124943,3.2078,2749.0,2748.6,17.441]
[1749716125240,3.2078,2749.0,2748.7,0.72746]
[1749716125434,3.2078,2749.0,2748.6,17.441]
[1749716125635,3.2078,2749.0,2748.6,18.691]
[1749716125838,3.2078,2749.0,2748.7,1.25]
[1749716126036,0.72745,2748.8,2748.5,1.45182]
[1749716126230,0.72745,2748.8,2748.6,22.93251]
[1749716126635,0.72748,2748.7,2748.6,22.93251]
[1749716126834,0.72748,2748.7,2748.6,22.205]
[1749716127536,3.2078,2748.7,2748.3,4.767]
[1749716127742,0.72756,2748.4,2748.3,22.204]
[1749716129639,0.72761,2748.2,2748.0,3.2078]
[1749716129843,0.72761,2748.2,2748.1,44.21]
[1749716130038,1.1833,2748.6,2748.1,44.93763]
[1749716130342,0.72761,2748.2,2748.1,45.469]
[1749716130745,0.72761,2748.2,2748.1,44.21]
[1749716131037,0.72761,2748.2,2748.1,26.776]
[1749716131240,0.72761,2748.2,2748.1,44.21]
[1749716131838,0.72764,2748.1,2748.0,3.2078]
[1749716132040,0.72764,2748.1,2748.0,7.9748]
[1749716132245,0.72772,2747.8,2747.7,1.3914]
[1749716132442,0.72777,2747.6,2747.5,3.2078]
[1749716132647,0.7278,2747.5,2747.4,4.767]
[1749716133542,0.7278,2747.5,2747.4,22.199]
[1749716134142,0.72782,2747.4,2747.3,0.0054601]
[1749716134446,1.98722,2747.4,2747.3,0.0054601]
[1749716134746,1.98722,2747.4,2747.3,17.4364601]
[1749716135851,0.72782,2747.4,2747.3,17.4364601]
[1749716136649,4.5201172,2747.5,2747.3,18.1643001]
[1749716137041,0.72782,2747.4,2747.3,17.4364601]
[1749716137641,3.7923172,2747.5,2747.4,0.72782]
[1749716137642,0.5845172,2747.5,2747.4,0.72782]
[1749716137855,0.5845172,2747.5,2747.4,1.94892]
[1749716138146,0.72782,2747.4,2747.3,0.0054601]
[1749716138338,0.72782,2747.4,2747.3,22.2044601]
[1749716138538,0.72782,2747.4,2747.3,0.0054601]
[1749716138742,0.72782,2747.4,2747.3,22.2034601]
[1749716140153,0.72782,2747.4,2747.3,0.0054601]
[1749716140346,0.72782,2747.4,2747.3,22.2024601]
[1749716140548,0.72782,2747.4,2747.3,0.0054601]
[1749716140749,0.72782,2747.4,2747.3,17.4354601]
[1749716140948,1.97622,2747.4,2747.3,17.4354601]
[1749716141149,1.97622,2747.4,2747.3,0.0054601]
[1749716141343,1.97622,2747.4,2747.3,17.4354601]
[1749716144154,0.72782,2747.4,2747.3,17.4354601]
[1749716146454,0.72782,2747.4,2747.3,0.0054601]
[1749716146654,0.72782,2747.4,2747.3,17.4334601]
[1749716147559,0.72782,2747.4,2747.3,0.0054601]
[1749716147764,0.72782,2747.4,2747.3,17.4324601]
[1749716149361,3.7923172,2747.5,2747.4,0.72782]
[1749716149561,0.5845172,2747.5,2747.4,0.72782]
[1749716149859,0.5225,2747.5,2747.4,1.98842]
[1749716151256,1.2503,2747.5,2747.4,17.426]
[1749716151461,0.72782,2747.4,2747.3,0.0054601]
[1749716151655,3.9976372,2747.4,2747.3,17.4304601]
[1749716151857,0.7898372,2747.4,2747.3,17.4304601]
[1749716152059,0.0620172,2747.4,2747.3,18.1583101]
[1749716152355,0.0620172,2747.4,2747.3,21.3661101]
[1749716154059,0.7898372,2747.4,2747.3,21.3661101]
[1749716154461,0.7898372,2747.4,2747.3,18.1583101]
[1749716156065,0.7898372,2747.4,2747.3,21.3661101]
[1749716156564,0.7898372,2747.4,2747.3,18.1583101]
[1749716157467,0.0620172,2747.4,2747.3,18.1583101]
[1749716160368,0.7277,2747.9,2747.8,0.72772]
[1749716160565,0.7277,2747.9,2747.8,18.14572]
[1749716160866,3.2078,2748.8,2747.9,1.81924]
[1749716161069,0.72754,2748.5,2748.4,0.72755]
[1749716161264,0.72753,2748.5,2748.4,17.418]
[1749716161461,0.72753,2748.5,2748.4,18.14556]
[1749716161660,3.2078,2748.8,2748.4,17.418]
[1749716161871,3.2078,2748.8,2748.7,0.72748]
[1749716162070,3.2078,2748.8,2748.7,5.48348]
[1749716162268,3.93525,2748.8,2748.7,4.756]
[1749716162466,3.2078,2748.8,2748.7,22.173]
[1749716162667,3.2078,2748.8,2748.2,17.416]
[1749716162668,1.81878,2748.6,2748.2,17.416]
[1749716162862,0.72759,2748.3,2748.2,17.416]
[1749716164170,3.2078,2748.8,2748.2,17.416]
[1749716164374,0.7275,2748.7,2748.5,0.72752]
[1749716164674,0.7275,2748.7,2748.6,0.6405]
[1749716165979,3.2078,2748.8,2748.7,0.72748]
[1749716166271,3.2078,2748.8,2748.7,18.14048]
[1749716167372,3.93525,2748.8,2748.7,18.14048]
[1749716167576,3.2078,2748.8,2748.7,18.14048]
[1749716168271,3.93525,2748.8,2748.7,18.14048]
[1749716168466,3.93525,2748.8,2748.7,17.413]
[1749716168970,3.93525,2748.8,2748.7,18.14048]
[1749716169370,3.2078,2748.8,2748.7,18.14048]
[1749716169770,3.2078,2748.8,2748.7,19.34638]